Cogmind - Beta 15 @@@ ROGUE MODE // 2025.05.18 @ 15:02:59 Player: Cess183 Result: Destroyed by A5-WB3(h) with Bolt Gun Performance ------------- Evolutions (0) 0 Regions Visited (3) 600 Robots Destroyed (22) 110 Value Destroyed (615) 615 Prototype IDs (6) 120 Alien Tech Used (0) 0 Bonus (800) 800 TOTAL SCORE: 2245 Bonus ------- Registered with UFD 300 Met Optimus in HQ 500 Cogmind --------- Core Integrity 0/250 Matter 239/300 Energy 58/240 System Corruption 0% Temperature Cool (23) Movement Treading (165) Location -8/Scraptown Parts ------- > --- POWER (1) -------- Nuclear Core > --- PROPULSION (2) --- Light Treads Armored Treads > --- UTILITY (2) ------ Large Storage Unit Hardened Medium Armor Plating > --- WEAPON (2) ------- Assault Rifle Assault Rifle > --- INVENTORY (15) --- Light Treads Spiked Treads Subdweller Optics Improved Signal Interpreter System Shield Authchip [R/NC] Scrap Shield Fragment (41) Peak State ------------ > --- POWER ------------ Improved Ion Engine > --- PROPULSION ------- Improved Treads Spiked Treads > --- UTILITY ---------- Large Storage Unit Small Matter Pod > --- WEAPON ----------- Subdweller Machine Gun Improved Grenade Launcher > --- INVENTORY -------- Nuclear Core Light Treads Light Treads Spiked Treads Armored Treads Subdweller Optics Improved Signal Interpreter Hardened Medium Armor Plating System Shield Authchip [R/NC] Assault Rifle Assault Rifle Scrap Shield Fragment [Rating: 15] Favorites ----------- Power Light Ion Engine Engine Light Ion Engine Power Core Nuclear Core Propulsion Light Treads Treads Light Treads Utility Small Matter Pod Storage Small Matter Pod Protection Hardened Medium Armor Plating Weapon Grenade Launcher Ballistic Gun Subdweller Machine Gun Launcher Grenade Launcher Build | -11 -10 -10 -8 ------- Run | Yrd Mat Sub Scr Slots Evolved . | . . . . Power . | . . . . Propulsion . | . . . . Utility . | . . . . Weapon . | . . . . Parts Attached 23 | 6 4 3 10 Power 5 | 1 . 1 3 Engine 4 | 1 . 1 2 Core 1 | . . . 1 Reactor . | . . . . Propulsion 5 | 2 . . 3 Treads 5 | 2 . . 3 Leg . | . . . . Wheel . | . . . . Hover . | . . . . Flight . | . . . . Utility 5 | 1 3 . 1 Device . | . . . . Storage 4 | 1 3 . . Processor . | . . . . Hackware . | . . . . Protection 1 | . . . 1 Artifact . | . . . . Weapon 8 | 2 1 2 3 Energy Gun . | . . . . Energy Cannon . | . . . . Ballistic Gun 6 | 2 1 1 2 Ballistic Cannon . | . . . . Launcher 2 | . . 1 1 Special Weapon . | . . . . Impact Weapon . | . . . . Slashing Weapon . | . . . . Piercing Weapon . | . . . . Special Melee Weapon . | . . . . Unidentified Prototypes . | . . . . Parts Lost 8 | . . 1 7 Power 1 | . . . 1 Propulsion 2 | . . . 2 Utility 1 | . . . 1 Weapon 4 | . . 1 3 Highest Loss Streak 7 | . . 1 7 To Critical Strikes . | . . . . Average Backups 11 | 4 10 11 11 Power . | . 1 1 . Propulsion 2 | 1 2 2 2 Utility 4 | . 2 2 5 Weapon 3 | 1 5 5 3 Tool/Special . | . . . . Unused Backups 11 | . . . 11 Power . | . . . . Propulsion 3 | . . . 3 Utility 6 | . . . 6 Weapon 2 | . . . 2 Tool/Special . | . . . . Average Slot Usage (%) 99 | . 98 100 99 Engine 13 | . 14 14 13 Treads 28 | . 28 28 28 Storage 27 | . 27 28 27 Ballistic Gun 16 | . 27 19 13 Launcher 11 | . . 8 13 Peak Build Rating 15 | 6 8 11 15 Average Rating 10 | 5 7 9 11 On Entrance 6 | . 6 8 11 Naked Turns . | . . . . Heaviest Build 87 | 11 87 33 35 Greatest Support 43 | 40 40 40 43 Greatest Overweight (x) 2 | 2 2 . . Average Overweight (x) . | . . . . Largest Inventory Capacity 25 | 8 25 15 15 Average Capacity 14 | 7 14 15 15 Most Carried 15 | 7 11 15 15 Average Carried 13 | 4 10 12 14 Final Capacity 15 | 8 15 15 15 Final Carried 15 | 7 11 15 7 Class Distribution -------------------- 100% | Mutant Dominant Class ---------------- Mutant | -10/Materials Mutant | -10/Subcaves Mutant | -8/Scraptown Resources | -11 -10 -10 -8 ----------- Run | Yrd Mat Sub Scr Matter Collected 781 | 296 236 75 174 Remotely . | . . . . Salvage Created 798 | 102 234 155 307 Parts 49 | 10 13 12 14 Haulers Intercepted . | . . . . Recyclers Shooed . | . . . . Parts Field Recycled . | . . . . Retrieved Matter . | . . . . Parts Self-Destructed . | . . . . Prevented . | . . . . Kills | -11 -10 -10 -8 ------- Run | Yrd Mat Sub Scr Combat Hostiles Destroyed 15 | . 5 5 5 Guns 7 | . 5 . 2 AOE 8 | . . 5 3 Classes Destroyed 9 | 2 4 1 2 Tunneler 3 | 3 . . . Recycler 2 | 1 1 . . Operator 1 | . 1 . . Watcher 1 | . 1 . . Swarmer 2 | . 2 . . Grunt 3 | . 3 . . Subdweller 5 | . . 5 . Federalist 1 | . . . 1 Scrapper 4 | . . . 4 Best Kill Streak 5 | 2 2 3 5 Combat Bots Only 5 | . 2 3 5 Max Kills in Single Turn 2 | 1 1 1 2 Gunslinging . | . . . . Exploded 1 | . . 1 1 Melee . | . . . . Uniques/NPCs Destroyed . | . . . . Combat | -11 -10 -10 -8 -------- Run | Yrd Mat Sub Scr Hostile Shots Fired 140 | . 35 20 85 Missed 32 | . 12 6 14 Hits 108 | . 23 14 71 Projectile 108 | . 23 14 71 Critical Strikes 3 | . . . 3 Damage Taken 1533 | . 197 362 974 Core 258 | . 54 43 161 Absorbed by Shields . | . . . . Regen/Repaired (Parts) 231 | . . . 231 Core Remaining (%) 100 | 100 . . . Volleys Fired 53 | 9 24 11 9 Largest 2 | 2 2 2 2 Hottest 66 | 40 40 50 66 Shots Fired 99 | 18 48 22 11 Gun 87 | 18 48 14 7 Cannon . | . . . . Launcher 12 | . . 8 4 Special . | . . . . Kinetic 87 | 18 48 14 7 Thermal . | . . . . Explosive 12 | . . 8 4 Electromagnetic . | . . . . Robot Hit Streak 11 | 6 3 11 3 Robot Miss Streak 6 | 1 6 1 2 Penetration Max . | . . . . Secondary Targets 1 | . 1 . . Max Gunslinging Chain 1 | . 1 . . Shots Hit Robots 59 | 12 23 18 6 Core Hits 38 | 7 12 8 11 Critical Kills . | . . . . Critical Parts Destroyed . | . . . . Critical Strikes . | . . . . Melee Attacks . | . . . . Impact . | . . . . Slashing . | . . . . Piercing . | . . . . Sneak Attacks . | . . . . Combat Hostiles . | . . . . Follow-up Attacks . | . . . . Damage Inflicted 1471 | 112 289 531 539 Guns 621 | 112 285 109 115 Cannons . | . . . . Explosions 846 | . . 422 424 Melee . | . . . . Ramming 4 | . 4 . . Kinetic 621 | 112 285 109 115 Thermal . | . . . . Explosive 846 | . . 422 424 Electromagnetic . | . . . . Impact . | . . . . Slashing . | . . . . Piercing . | . . . . Highest Corruption . | . . . . Average Corruption . | . . . . Corruption Purged . | . . . . Corruption Blocked . | . . . . Overload Shots . | . . . . Overflow Damage . | . . . . Projectiles . | . . . . Explosions . | . . . . Melee . | . . . . Knockbacks . | . . . . Impact . | . . . . Kinetic . | . . . . Secondary . | . . . . Self-Inflicted Damage 99 | . . 80 19 Shots 5 | . . 4 1 Rammed 1 | . 1 . . Targets Rammed 2 | . 2 . . Kicked . | . . . . Crushed 1 | . 1 . . Highest Temperature 96 | . 6 . 96 Average Temperature 28 | . 6 . 30 Received Heat Transfer 561 | . 48 48 465 Siege Activations . | . . . . Martial Activations . | . . . . Shielding Activations . | . . . . Robots Disrupted . | . . . . Combat Hostiles . | . . . . Robots Corrupted . | . . . . Combat Hostiles . | . . . . Parts Fried . | . . . . Impact Corruptions . | . . . . Robots Melted . | . . . . Combat Hostiles . | . . . . Parts Melted 1 | . . . 1 Heat Transferred . | . . . . Parts Sabotaged . | . . . . Parts Stolen . | . . . . Parts Stripped . | . . . . Power Chain Reactions . | . . . . Alert | -11 -10 -10 -8 ------- Run | Yrd Mat Sub Scr Maximum Alert Level . | . . . . Low Security (%) 100 | 100 100 . . Level 1 . | . . . . Level 2 . | . . . . Level 3 . | . . . . Level 4 . | . . . . Level 5 . | . . . . High Security . | . . . . Max Security . | . . . . Peak Influence 40 | 5 40 . . Initial . | . . . . Average 6 | 1 8 . . Influence Increases 157 | 20 137 . . Destroy 0b10 Robot/C 100 | . 100 . . Destroy 0b10 Robot/NC 35 | 20 15 . . Destroy Leader 22 | . 22 . . Influence Decreases 157 | 20 137 . . Time Decay 157 | 20 137 . . Squads Dispatched 1 | . 1 . . Investigation . | . . . . Extermination . | . . . . Reinforcement 1 | . 1 . . Assault . | . . . . Garrison . | . . . . Intercept . | . . . . Searches Triggered . | . . . . Construction Impeded . | . . . . Haulers Reinforced . | . . . . Active Scanning Responses . | . . . . Cargo Convoy Interrupts . | . . . . Stealth | -11 -10 -10 -8 --------- Run | Yrd Mat Sub Scr Distress Signals 1 | . 1 . . Communications Jammed . | . . . . Distress Signals . | . . . . Times Spotted 36 | . 11 5 20 Peak Tracking Total 9 | . 3 2 9 Tactical Retreats . | . . . . Traps | -11 -10 -10 -8 ------- Run | Yrd Mat Sub Scr Traps Triggered . | . . . . Indirectly . | . . . . Trap Hack Attempts . | . . . . Triggered . | . . . . Disarmed . | . . . . Reprogrammed . | . . . . Reused . | . . . . Traps Extracted . | . . . . Installed . | . . . . Triggered . | . . . . Machines | -11 -10 -10 -8 ---------- Run | Yrd Mat Sub Scr Machines Disabled . | . . . . Max in Single Turn . | . . . . Machines Repaired . | . . . . Machines Dismantled . | . . . . Machines Sabotaged . | . . . . Overloaded Fab Kills . | . . . . Hacking | -11 -10 -10 -8 --------- Run | Yrd Mat Sub Scr Machines Accessed 9 | . 1 . 8 Terminals 1 | . 1 . . Fabricators . | . . . . Repair Stations . | . . . . Recycling Units . | . . . . Scanalyzers . | . . . . Garrison Access . | . . . . Total Hacks 49 | . 1 . 48 Successful 48 | . . . 48 Failed 1 | . 1 . . Catastrophic . | . . . . Database Lockouts . | . . . . Manual 8 | . . . 8 Terminals 1 | . 1 . . Fabricators . | . . . . Repair Stations . | . . . . Recycling Units . | . . . . Scanalyzers . | . . . . Garrison Access . | . . . . Terminal Hacks 48 | . . . 48 Record 42 | . . . 42 Robot Analysis 5 | . . . 5 Proto ID Catalog 1 | . . . 1 Fabricator Hacks . | . . . . Repair Station Hacks . | . . . . Recycling Unit Hacks . | . . . . Scanalyzer . | . . . . Garrison Access Hacks . | . . . . Unauthorized Hacks . | . . . . Terminals . | . . . . Fabricators . | . . . . Repair Stations . | . . . . Recycling Units . | . . . . Scanalyzers . | . . . . Garrison Access . | . . . . Data Cores Recovered . | . . . . Used . | . . . . Hacking Detections 1 | . 1 . . Full Trace Events . | . . . . Feedback Events . | . . . . Feedback Blocked . | . . . . Robot Schematics Acquired . | . . . . Robots Built . | . . . . Authchips . | . . . . Time . | . . . . Total Robot Build Rating . | . . . . Part Schematics Acquired . | . . . . Parts Built . | . . . . Authchips . | . . . . Time . | . . . . Total Part Build Rating . | . . . . Parts Repaired . | . . . . Time . | . . . . Parts Recycled . | . . . . Recycled Matter . | . . . . Retrieved Matter . | . . . . Retrieved Components . | . . . . Parts Scanalyzed . | . . . . Part Schematics Acquired . | . . . . Parts Damaged . | . . . . Bothacking | -11 -10 -10 -8 ------------ Run | Yrd Mat Sub Scr Used RIF Installer . | . . . . Robots Hacked . | . . . . Non-combat . | . . . . Combat . | . . . . Robot Hacks Applied . | . . . . Relay Couplers Released . | . . . . Fabnet Peak Effective % . | . . . . Robots Rewired . | . . . . Allies Hacked . | . . . . Hacks Repelled . | . . . . Allies | -11 -10 -10 -8 -------- Run | Yrd Mat Sub Scr Total Allies . | . . . . Largest Group . | . . . . Highest-Rated Group . | . . . . Highest-Rated Ally . | . . . . Total Orders . | . . . . Ally Attacks . | . . . . Total Damage . | . . . . Kills . | . . . . Allies Corrupted . | . . . . Allies Melted 5 | . . . 5 Intel | -11 -10 -10 -8 ------- Run | Yrd Mat Sub Scr Active Infowar (turns) . | . . . . Robot Analysis Total 5 | . . . 5 Derelict Logs Recovered 3 | . . 1 2 Drone Launches . | . . . . Drone Recoveries . | . . . . Exploration | -11 -10 -10 -8 ------------- Run | Yrd Mat Sub Scr Turns Passed 5057 | 179 568 449 3861 Spaces Moved 3025 | 96 296 255 2378 Core 14 | 14 . . . Treads 3011 | 82 296 255 2378 Legs . | . . . . Wheels . | . . . . Hover . | . . . . Flight . | . . . . Fastest Speed 50 | 50 160 160 160 Average Speed 159 | 145 161 160 160 Slowest Speed 320 | 160 320 160 160 Overloaded Moves . | . . . . Propulsion Burnouts . | . . . . Robots Hopped . | . . . . Potential Cave-ins . | . . . . Cave-ins Triggered . | . . . . Exploration Rate (%) 38 | 6 38 16 93 Regions Visited 3 Branch Regions 2 Pre-discovered Areas 3 | . . . 3 Known Exits Taken . | . . . . Unknown Exits Taken 3 | 1 1 1 . Scrap Searched 5 | . . . 5 Spaces Dug . | . . . . Terrain Destroyed 54 | . . 54 . Melee . | . . . . Projectile . | . . . . AOE 54 | . . 54 . Terrain Rammed . | . . . . Walls Destroyed . | . . . . Machines Disabled . | . . . . Actions | -11 -10 -10 -8 --------- Run | Yrd Mat Sub Scr Total 3158 | 117 338 274 2429 Wait 13 | . 6 . 7 Move 3022 | 95 295 254 2378 Hop . | . . . . Pick Up 25 | 7 3 4 11 Fast Attach 8 | 6 2 . . Attach 9 | . . 1 8 Detach 1 | . 1 . . Swap 8 | . 3 2 3 Drop 16 | . 2 2 12 Fire 53 | 9 24 11 9 Melee . | . . . . Ram . | . . . . Kick . | . . . . Crush 2 | . 2 . . Escape Stasis . | . . . . Rewire 1 | . . . 1 Trap . | . . . . Miscellaneous . | . . . . Route ------- -11/Scrapyard -10/Materials (discovered 3 exits: [*Mat] / [*Min] / [*Sub]) -10/Subcaves -8/Scraptown (discovered 2 exits: [*Fac x2]) History --------- Turn | Location | Event 5 | -11/Scrapyard | Discovered new exit (range 15) 180 | -11/Scrapyard | Entered Materials 271 | -10/Materials | Discovered new exit (range 16) 310 | -10/Materials | Build established: Mutant 507 | -10/Materials | Discovered new exit (range 7) 730 | -10/Materials | Discovered new exit (range 12) 748 | -10/Materials | Entered Subcaves 749 | -10/Subcaves | Approached by a straggling Scientist 1061 | -10/Subcaves | Learned 8 Materials zone layouts 1189 | -10/Subcaves | Scientist uncovered a shortcut to Scraptown 1197 | -10/Subcaves | Entered Scraptown 1450 | -8/Scraptown | Visited TADAMA 1508 | -8/Scraptown | Visited Cave Peace 1615 | -8/Scraptown | Visited UFD Registry 1648 | -8/Scraptown | Visited Awakened 1696 | -8/Scraptown | Visited Junk Repository 1778 | -8/Scraptown | Scanned Subdweller tech in exchange for log data 1784 | -8/Scraptown | Learned Research terminal intel 1786 | -8/Scraptown | Learned location of Testing (-3) 1804 | -8/Scraptown | Discovered new exit (range 11) 2596 | -8/Scraptown | Visited Cyclists 2647 | -8/Scraptown | Visited CR-KLE's Repair Center 2661 | -8/Scraptown | CR-KLE repaired 6 parts 2850 | -8/Scraptown | Registered with UFD as "Wrenchrunner" 2928 | -8/Scraptown | Entered Cyclist Reading Room 2941 | -8/Scraptown | Learned location of Zion (-6) 3050 | -8/Scraptown | Visited Botcube Research 3092 | -8/Scraptown | Visited Junk Cannon Lab 3176 | -8/Scraptown | Visited DA-N13 Charitable Foundation 3209 | -8/Scraptown | Found DCF Scrap (28 items) 3419 | -8/Scraptown | Visited Science Guys 3576 | -8/Scraptown | Delivered Scrap Shield to a Scientist 3860 | -8/Scraptown | Visited Scrapoid Pod Storage 3903 | -8/Scraptown | Visited Abandonware Association 3988 | -8/Scraptown | Visited Derelict Rescue Squad 4066 | -8/Scraptown | Discovered new exit (range 5) 4212 | -8/Scraptown | Visited Analyses Database 4245 | -8/Scraptown | Received an X-ray algorithm 4272 | -8/Scraptown | Ran an X-ray algorithm 4325 | -8/Scraptown | Ran an X-ray algorithm 4365 | -8/Scraptown | Visited LU-1G1's Boring Crew 4453 | -8/Scraptown | Visited Scrapoid Research Area 4657 | -8/Scraptown | Met Optimus 4657 | -8/Scraptown | Accepted into 0bPrime 4886 | -8/Scraptown | Civil war broke out across Scraptown 5014 | -8/Scraptown | Core integrity fell below 50% 5019 | -8/Scraptown | Optimus destroyed in the chaos of civil war 5038 | -8/Scraptown | Core integrity fell below 20% 5058 | -8/Scraptown | Destroyed by A5-WB3(h) with Bolt Gun Last Messages --------------- 05047_ Penetrated by Bolt. 05047_ TE-PQS(j) destroyed. 05048_ Acquired 13 matter. 05048_ Imp. Grenade Launcher destroyed. 05050_ Imp. Treads destroyed. 05050_ Bolt penetrates JQ-X9S(j). 05050_ Penetrated by Bolt. 05053_ Critical hit (Burn: +50). 05054_ HV Slug penetrates Wall. 05054_ Spk. Treads destroyed. 05056_ Penetrated by Bolt. 05056_ Bolt penetrates Wall. 05056_ HV Slug penetrates Reinforced Barrier. 05056_ Penetrated by HV Slug. 05056_ QH-V35(j) destroyed. 05057_ KN-G2F(j) destroyed. 05058_ HV Slug penetrates Reinforced Barrier. 05058_ Penetrated by HV Slug. 05058_ HV Slug penetrates Wall. 05058_ Penetrated by Bolt. Map ----- +----------------------------------------------------+ | #???????#" | | ################ #???#####" | | ???????????????# #???#"""" """""""""" | | ???????????????# #???#"""" """""""""" | | ???????????????# #???#"""" ""###### | | ???????????????# #???#"""" ""# | | ???????????????# #???#"""" ""# | | ???????????????" ###?#"""" ""# "" | | ??#########????# ""#"#"""" ""# "" | | ??# #????# =! """"#"""" ""# " | | ??# "" "" #????# [=[%! ""#######" "" "" | | ??# ""X"" #????# !% =!= ###?????#"! "" "" | | ??# """"" #????#!= %! #########*% ""# " | | ??# """ #????#%= ! !%[ [ ""# "" | | ??# " #????#[* & [ ! ""# "" | | ?## #????# = !=h* ""# | | ## #????#! = ! =%= ""# | | ""! "###########%[ TT%= %=! =%* ""###### | | =%= =[ TT![ =[![!= !* """""""""" | | [ [=!j=!=*%=!!= """""""""" | | [ !**%=!!/!=%[=%/ | | *% ====!*h%=[[===* | | = !%[!!=!=%!!=%=*!%[ | | =%[!=!%!!%#""""#"*!%[ | | *!* = =[#????#" | | [!%!!=[@ !#????#"""""" """"""""" | | ###########"####;;==*%!!%;;##????####### ######### | | #????## [!#=!=* #??????# "# | | "#????#; !%=#=%=####??????#""" "# | | X#???# ; = #*[!#?????????#""& " # | | "#???? " ;![ #?????????#""" ""#""" | | ######???##" """"" ;%= #?????????#"""" ""#" | | #?????????## """"" ;=! #?????????#######"####"" | | #??????????# """"" ; #????????????????????#"" | | #??????????# # #????????????????????#"" | | #??????????# #=! #????????????????????#"" | | #??????????########;"#%= #????????????????????#""" | | #?????????????????####![ #????????????????????#""" | | ???????????###########! #????????????????????#### | | ???????????"""""""""" #????#################### | | ??????????#""""" """" #????# ##"""##""" | | ?????##??##"""" " "" #????# """"""" ## ""## "" | | ????# #????# """"""" | | ????? #??##"" "" "" " #????# """"""" | | ???"" "???#""""""""""" #????# """"""" | | ??""" "#??#""""""""""" #????# """"""" ##"""##""" | | ?#""" "#????########## #????# ##"""##""" | | ##"" "#?############# #????#################### | | ##"" "#?#"""""""""""# #???????????????????????? | | ##"| "#?#"" [=!!!! "# #???????????????????????? | +----------------------------------------------------+ Best States ------------- Heat Dissipation 25 Energy Generation 15 Energy Capacity 265 Matter Stores 350 Matter Capacity 350 Sight Range 16 Terrain Scan Density 10 Evasion (%) 50 Recoil Reduction 2 Authchip Count 1 Item Schematics ----------------- None Robot Schematics ------------------ None Fabricated ------------ Nothing Repaired ---------- Nothing Alien Tech Used ----------------- None Achievements -------------- Armchair Analyst Challenges ------------ None Game ------ Seed ExpertExpertShredder Manual? 0 Play Time 01:03:44 Cumulative 17.0 hours Start 2025.05.18 @ 13:44:31 End 2025.05.18 @ 15:02:59 Sessions 1 Manual Loads 0 Difficulty Rogue Special Mode None Game No. 24 Rogue 24 Adventurer 0 Explorer 0 Win Type - Total 0 Types 0/0/0/0/0/0/0/0/0/0 Lore% 19 Gallery% 16 Achievement% 16 Wizard Run 0 Options --------- Layout 1 ASCII 0 Keyboard 1 Movement Vi Keybinds 0 Fullscreen 1 Font 24/Smallcaps Map View 50x35 Zoom Use 0% Tactical HUD 1 Map Filters NONE Filters NONE Steam 1 RUN: ab01df34-fe78-4f5e-9797-ee8368cf863e